lending/lending_fUSD_20240219
["ID","MTS","AMOUNT","RATE_DAILY","PERIOD"]
[314421911,1708330805683,150.0,0.00025,2]
[314421912,1708330805856,150.0,0.00025,2]
[314421913,1708330806038,150.0,0.00025,2]
[314421914,1708330806230,150.0,0.00025,2]
[314421915,1708330806641,150.0,0.00025,2]
[314421916,1708330806680,150.0,0.00025,2]
[314421917,1708330806745,150.0,0.00025,2]
[314421918,1708330806917,150.0,0.00025,2]
[314421919,1708330807074,150.0,0.00025,2]
[314421920,1708330807237,150.0,0.00025,2]
[314421921,1708330807395,150.0,0.00025,2]
[314421922,1708330807550,150.0,0.00025,2]
[314421923,1708330807759,150.0,0.00025,2]
[314421924,1708330808161,150.0,0.00025,2]
[314421925,1708330808333,150.0,0.00025,2]
[314421926,1708330808500,150.0,0.00025,2]
[314421927,1708330808721,150.0,0.00025,2]
[314421928,1708330808826,150.0,0.00025,2]
[314421929,1708330809012,150.0,0.00025,2]
[314421930,1708330809174,150.0,0.00025,2]
[314421931,1708330809351,150.0,0.00025,2]
[314421932,1708330809535,229.14662851,0.00025,2]
[314421934,1708331077259,162.0,0.00025,15]
[314421935,1708331140736,158.90594598,0.00025,2]
[314421936,1708331231110,-419.0,0.000265,5]
[314421937,1708331231131,-113.89477144,0.00027,3]
[314421938,1708331245136,-203.22520032,0.000269,2]
[314421939,1708331245156,-486.10522856,0.00027,3]
[314421940,1708331245174,-200.0,0.00027,2]
[314421941,1708331245192,-1001.42241976,0.000279,5]
[314421942,1708331245210,-300.0,0.00028999,2]
[314421943,1708331245228,-300.0,0.00028999,2]
[314421944,1708331245247,-150.0,0.00028999,2]
[314421945,1708331245266,-650.0,0.00029,3]
[314421946,1708331245293,-700.0,0.00031,3]
[314421947,1708331245312,-420.0,0.00031287,3]
[314421948,1708331245331,-206.0,0.00031899,3]
[314421949,1708331245349,-438.46535756,0.000319,3]
[314421950,1708331352738,-561.53464243,0.000319,3]
[314421951,1708331364100,-295.07045189,0.00032771,7]
[314421952,1708331364121,-500.0,0.000329,2]
[314421953,1708331364141,-750.0,0.00033,3]
[314421954,1708331364161,-42.67605033,0.00033595,2]
[314421957,1708331407070,-278.46535757,0.00033495,2]
[314421960,1708331432312,-15.8291241,0.00033495,2]
[314421961,1708331432322,-651.33,0.00033595,2]
[314421962,1708331432332,-294.29448164,0.00033769,2]
[314421963,1708331432341,-294.29448164,0.00034042,2]
[314421964,1708331432350,-294.29448164,0.00034316,2]
[314421965,1708331432360,-151.10024855,0.00034333,2]
[314421966,1708331432369,-294.29448164,0.0003459,2]
[314421967,1708331432379,-294.29448164,0.00034864,2]
[314421968,1708331432388,-152.0,0.00034907,3]
[314421969,1708331432397,-500.0,0.00034925,2]
[314421970,1708331432407,-1855.56,0.00034925,2]
[314421971,1708331432417,-10739.03791794,0.00034925,2]
[314421972,1708331432427,-250.0,0.00034964,2]
[314421973,1708331432436,-360.43720995,0.00034977,2]
[314421974,1708331432446,-800.0,0.00035,3]
[314421975,1708331432455,-9999.99,0.00035,2]
[314421976,1708331432465,-408.05917767,0.00035,4]
[314421977,1708331432475,-499.99,0.00035,2]
[314421978,1708331432484,-162.0,0.00035,2]
[314421979,1708331432493,-2705.0,0.00035122,2]
[314421980,1708331432502,-250.0,0.00035122,2]
[314421981,1708331432512,-405.45,0.0003514,2]
[314421982,1708331432521,-166.17,0.0003514,2]
[314421983,1708331432530,-231.74,0.0003514,2]
[314421984,1708331432540,-706.71,0.00035154,2]
[314421985,1708331432549,-2000.0,0.00035182,2]
[314421986,1708331432558,-184.51,0.00035188,2]
[314421987,1708331432567,-161.79,0.00035195,2]
[314421988,1708331432577,-3249.64,0.00035207,2]
[314421989,1708331432585,-182.12,0.0003532,2]
[314421990,1708331432595,-1144.1,0.00035333,2]
[314421991,1708331432606,-579.57,0.00035397,2]
[314421992,1708331432615,-517.84,0.00035445,2]
[314421993,1708331432624,-692.02,0.00035445,2]
[314421994,1708331432633,-1302.14,0.00035482,2]
[314421995,1708331432642,-1879.25,0.00035517,2]
[314421996,1708331432651,-9634.46,0.0003556,37]
[314421997,1708331432660,-23900.0,0.00035587,2]
[314421998,1708331432669,-150.1,0.00035619,2]
[314421999,1708331432677,-2401.55,0.0003564,2]
[314422000,1708331432686,-200.0,0.0003568,2]
[314422001,1708331432696,-558.08,0.00035697,2]
[314422002,1708331432705,-161.79,0.00035698,2]
[314422003,1708331432714,-549.72,0.00035716,2]
[314422004,1708331432723,-181.47,0.0003576,2]
[314422005,1708331432732,-549.72,0.00035814,2]
[314422006,1708331432742,-651.33,0.00035858,2]
[314422007,1708331432751,-549.72,0.00035912,2]
[314422008,1708331432761,-549.72,0.0003601,2]
[314422009,1708331432771,-184.51,0.00036103,2]
[314422010,1708331432780,-549.72,0.00036108,2]
[314422011,1708331432790,-161.79,0.00036201,2]
[314422012,1708331432799,-549.72,0.00036206,2]
[314422013,1708331432809,-549.72,0.00036304,2]
[314422014,1708331432818,-549.72,0.00036402,2]
[314422015,1708331432827,-253.07,0.00036418,2]
[314422016,1708331432838,-549.72,0.000365,2]
[314422017,1708331432847,-412.29,0.0003654,2]
[314422018,1708331432857,-32468.78786127,0.00036588,2]
[314422019,1708331432866,-549.72,0.00036598,2]
[314422020,1708331432876,-253.07,0.0003661,2]
[314422021,1708331432885,-580.13,0.00036681,2]
[314422022,1708331432895,-549.72,0.00036696,2]
[314422023,1708331432905,-161.79,0.00036703,2]
[314422024,1708331432914,-517.84,0.00036757,2]
[314422025,1708331432924,-549.72,0.00036794,2]
[314422026,1708331432933,-253.07,0.00036802,2]
[314422027,1708331432943,-754.15,0.00036847,2]
[314422028,1708331432953,-589.36,0.00036847,2]
[314422029,1708331432962,-412.29,0.0003687,2]
[314422030,1708331432972,-549.72,0.00036892,2]
[314422031,1708331432981,-150.99,0.000369,2]
[314422032,1708331432993,-441.92,0.00036975,2]
[314422033,1708331433003,-549.72,0.0003699,2]
[314422034,1708331433012,-253.07,0.00036993,2]
[314422035,1708331433022,-850.0,0.00037,3]
[314422036,1708331433032,-1000.0,0.00037,2]
[314422037,1708331433041,-184.51,0.00037017,2]
[314422038,1708331433051,-549.72,0.00037088,2]
[314422039,1708331433061,-1879.25,0.00037161,2]
[314422040,1708331433070,-490.10473854,0.00037184,2]
[314422041,1708331433079,-253.07,0.00037185,2]
[314422042,1708331433089,-549.72,0.00037186,2]
[314422043,1708331433098,-161.79,0.00037206,2]
[314422044,1708331433107,-84604.34095808,0.00037233,2]
[314422045,1708331433124,-2802.21516,0.00037233,2]
[314422046,1708331433137,-1509.465,0.00037233,2]
[314422047,1708331433157,-841.21016472,0.00037233,2]
[314422048,1708331433167,-136622.7687172,0.00037233,2]
[314422049,1708331433177,-549.72,0.00037284,2]
[314422050,1708331433186,-279.28040704,0.0003732,10]
[314422051,1708331433195,-71402.1281949,0.0003733,10]
[314422052,1708331433206,-253.07,0.00037377,2]
[314422053,1708331433214,-549.72,0.00037381,2]
[314422054,1708331433223,-549.72,0.00037479,2]
[314422055,1708331433232,-490.10473848,0.00037559,2]
[314422056,1708331433241,-253.07,0.00037568,2]
[314422057,1708331433250,-549.72,0.00037577,2]
[314422058,1708331433259,-161.79,0.00037709,2]
[314422059,1708331433269,-20476.6191,0.00037752,2]
[314422060,1708331433278,-253.07,0.0003776,2]
[314422061,1708331433287,-177.53,0.000378,2]
[314422062,1708331433297,-503.19071072,0.000378,2]
[314422063,1708331433306,-1046.61944516,0.000379,2]
[314422064,1708331433315,-1673.54072267,0.000379,2]
[314422065,1708331433324,-490.10473848,0.00037934,2]
[314422066,1708331433333,-253.07,0.00037952,2]
[314422067,1708331433342,-290.10260406,0.00037962,7]
[314422068,1708331433351,-744.05545176,0.00037962,7]
[314422069,1708331433360,-231.18048879,0.00037962,7]
[314422070,1708331433369,-484.73506667,0.00037963,7]
[314422071,1708331433378,-5386.46648652,0.00037964,7]
[314422072,1708331433386,-800.0,0.00037973,2]
[314422073,1708331433395,-100000.0,0.00038,8]
[314422074,1708331433404,-165.0,0.00038,10]
[314422075,1708331433413,-150.0,0.00038,2]
[314422076,1708331433423,-150.0,0.00038,2]
[314422077,1708331433432,-303.8807506,0.00038,5]
[314422078,1708331433441,-214.59791816,0.00038,2]
[314422079,1708331433450,-214.59791816,0.00038,2]
[314422080,1708331433460,-4000.01563248,0.00038,2]
[314422081,1708331433469,-517.84,0.00038068,2]
[314422082,1708331433478,-1145.91278478,0.000381,4]
[314422083,1708331433487,-651.33,0.00038122,2]
[314422084,1708331433496,-1673.54072267,0.00038125,2]
[314422085,1708331433505,-253.07,0.00038143,2]
[314422086,1708331433514,-161.79,0.00038212,2]
[314422087,1708331433523,-490.10473848,0.00038308,2]
[314422088,1708331433532,-207.0,0.00038331,2]
[314422089,1708331433542,-253.07,0.00038335,2]
[314422090,1708331433551,-177.53,0.00038348,2]
[314422091,1708331433560,-1673.54072267,0.0003835,2]
[314422092,1708331433569,-508.3,0.00038356,15]
[314422093,1708331433578,-150.0,0.00038356,2]
[314422094,1708331433587,-496.34790707,0.00038387,2]
[314422095,1708331433596,-220.01438544,0.00038388,10]
[314422096,1708331433607,-624.82918159,0.00038388,10]
[314422097,1708331433616,-90065.6761906,0.00038397,3]
[314422098,1708331433625,-3093.25878997,0.00038407,8]
[314422099,1708331433635,-713.987,0.00038443,2]
[314422100,1708331433644,-843.0,0.00038443,2]
[314422101,1708331433653,-957.153,0.00038443,2]
[314422102,1708331433662,-749.08225,0.0003847,2]
[314422103,1708331433671,-152.0,0.00038475,4]
[314422104,1708331433681,-312.88,0.00038493,2]
[314422105,1708331433690,-580.13,0.00038515,2]
[314422106,1708331433700,-253.07,0.00038527,2]
[314422107,1708331433709,-236.7151837,0.0003853,13]
[314422108,1708331433718,-150.0,0.00038548,2]
[314422109,1708331433728,-1673.54072267,0.00038574,2]
[314422110,1708331433737,-236.71518368,0.000386,13]
[314422111,1708331433746,-554.8502203,0.000386,2]
[314422112,1708331433755,-603.42,0.000386,3]
[314422113,1708331433764,-159.04,0.00038617,2]
[314422114,1708331433773,-200.0,0.00038624,5]
[314422115,1708331433784,-572.06041303,0.0003863,4]
[314422116,1708331433794,-500.0,0.0003863,4]
[314422117,1708331433803,-500.0,0.0003863,4]
[314422118,1708331433812,-530.68328695,0.0003863,4]
[314422119,1708331433822,-500.0,0.0003863,4]
[314422120,1708331433832,-511.30535365,0.0003863,4]
[314422121,1708331433842,-607.50297557,0.0003863,4]
[314422122,1708331433851,-478.15930202,0.0003863,4]
[314422123,1708331433860,-568.61285826,0.0003863,4]
[314422124,1708331433871,-522.98264022,0.0003863,4]
[314422125,1708331433880,-557.35952382,0.0003863,4]
[314422126,1708331433889,-500.0,0.0003863,4]
[314422127,1708331433898,-528.93025824,0.0003863,4]
[314422128,1708331433907,-519.20620212,0.0003863,4]
[314422129,1708331433917,-540.2244294,0.0003863,4]
[314422130,1708331433927,-500.0,0.0003863,20]
[314422131,1708331433936,-541.58061164,0.0003863,4]
[314422132,1708331433946,-570.13123367,0.0003863,4]
[314422133,1708331433955,-500.0,0.0003863,4]
[314422134,1708331433964,-500.0,0.0003863,4]
[314422135,1708331433973,-489.5489295,0.0003863,4]
[314422136,1708331433983,-500.0,0.0003863,4]
[314422137,1708331433992,-645.65,0.0003863,4]
[314422138,1708331434002,-526.08967242,0.0003863,4]
[314422139,1708331434011,-528.47307311,0.0003863,4]
[314422140,1708331434020,-500.0,0.0003863,4]
[314422141,1708331434030,-500.0,0.0003863,4]
[314422142,1708331434039,-500.0,0.0003863,2]
[314422143,1708331434048,-500.0,0.0003863,2]
[314422144,1708331434057,-1110.99,0.0003863,4]
[314422145,1708331434067,-500.0,0.0003863,4]
[314422146,1708331434076,-500.0,0.0003863,4]
[314422147,1708331434085,-220.45458941,0.0003863,4]
[314422148,1708331434095,-564.07282659,0.0003863,4]
[314422149,1708331434104,-500.0,0.0003863,2]
[314422150,1708331434113,-500.0,0.0003863,2]
[314422151,1708331434123,-500.0,0.0003863,4]
[314422152,1708331434132,-500.0,0.0003863,4]
[314422153,1708331434141,-500.0,0.0003863,4]
[314422154,1708331434149,-500.0,0.0003863,4]
[314422155,1708331434159,-633.66592517,0.0003863,4]
[314422156,1708331434331,-500.0,0.0003863,4]
[314422157,1708331434342,-500.0,0.0003863,4]
[314422158,1708331434351,-500.0,0.0003863,4]
[314422159,1708331434360,-500.0,0.0003863,4]
[314422160,1708331434369,-500.0,0.0003863,4]
[314422161,1708331434378,-500.0,0.0003863,4]
[314422162,1708331434387,-500.0,0.0003863,4]
[314422163,1708331434397,-500.0,0.0003863,4]
[314422164,1708331434406,-500.0,0.0003863,4]
[314422165,1708331434416,-500.0,0.0003863,4]
[314422166,1708331434425,-500.0,0.0003863,4]
[314422167,1708331434434,-500.0,0.0003863,4]
[314422168,1708331434444,-200.3326654,0.0003863,4]
[314422169,1708331434453,-500.0,0.0003863,4]
[314422170,1708331434463,-500.0,0.0003863,4]
[314422171,1708331434473,-527.46422739,0.0003863,4]
[314422172,1708331434481,-500.0,0.0003863,4]
[314422173,1708331434491,-475.06173008,0.0003863,4]
[314422174,1708331434504,-24.93826992,0.0003863,4]
[314422175,1708331434513,-590.28790907,0.0003863,4]
[314422176,1708331434522,-591.79411538,0.0003863,4]
[314422177,1708331434531,-624.62563527,0.0003863,4]
[314422178,1708331434540,-500.0,0.0003863,4]
[314422179,1708331434549,-542.67036706,0.0003863,4]
[314422180,1708331434559,-500.0,0.0003863,4]
[314422181,1708331434568,-500.0,0.0003863,4]
[314422182,1708331434577,-635.22440919,0.0003863,4]
[314422183,1708331434586,-500.0,0.0003863,4]
[314422184,1708331434595,-608.24513252,0.0003863,4]
[314422185,1708331434605,-500.0,0.0003863,4]
[314422186,1708331434617,-500.0,0.0003863,4]
[314422187,1708331434626,-500.0,0.0003863,4]
[314422188,1708331434635,-500.0,0.0003863,4]
[314422189,1708331434644,-500.0,0.0003863,4]
[314422190,1708331434653,-500.0,0.0003863,4]
[314422191,1708331434663,-500.0,0.0003863,4]
[314422192,1708331434672,-500.0,0.0003863,4]
[314422193,1708331434681,-500.0,0.0003863,4]
[314422194,1708331434692,-500.0,0.0003863,4]
[314422195,1708331434701,-545.1,0.0003863,4]
[314422196,1708331434710,-500.0,0.0003863,4]
[314422197,1708331434720,-500.0,0.0003863,4]
[314422198,1708331434729,-329.8,0.0003863,4]
[314422199,1708331434739,-511.28022152,0.0003863,4]
[314422200,1708331434748,-500.0,0.0003863,4]
[314422201,1708331434757,-500.0,0.0003863,4]
[314422202,1708331434766,-255.24,0.0003863,4]
[314422203,1708331434775,-500.0,0.0003863,4]
[314422204,1708331434785,-582.99373081,0.0003863,4]
[314422205,1708331434794,-500.0,0.0003863,4]
[314422206,1708331434804,-517.82,0.0003863,4]
[314422207,1708331434814,-500.0,0.0003863,4]
[314422208,1708331434823,-355.04303457,0.0003863,4]
[314422209,1708331434832,-500.0,0.0003863,4]
[314422210,1708331434842,-500.0,0.0003863,4]
[314422211,1708331434851,-500.0,0.0003863,4]
[314422212,1708331434861,-500.0,0.0003863,4]
[314422213,1708331434870,-500.0,0.0003863,4]
[314422214,1708331434880,-500.0,0.0003863,4]
[314422215,1708331434890,-500.0,0.0003863,4]
[314422216,1708331434899,-637.0995055,0.0003863,4]
[314422217,1708331434908,-500.0,0.0003863,4]
[314422218,1708331434918,-500.0,0.0003863,4]
[314422219,1708331434929,-500.0,0.0003863,4]
[314422220,1708331434939,-500.0,0.0003863,4]
[314422221,1708331434948,-500.0,0.0003863,4]
[314422222,1708331434957,-500.0,0.0003863,4]
[314422223,1708331434966,-512.74271961,0.0003863,4]
[314422224,1708331434975,-500.0,0.0003863,4]
[314422225,1708331434984,-564.16632593,0.0003863,4]
[314422226,1708331434994,-500.0,0.0003863,4]
[314422227,1708331435003,-567.56818025,0.0003863,4]
[314422228,1708331435014,-637.92575845,0.0003863,4]
[314422229,1708331435024,-500.0,0.0003863,4]
[314422230,1708331435033,-500.0,0.0003863,4]
[314422231,1708331435043,-546.60585434,0.0003863,4]
[314422232,1708331435053,-515.80822278,0.0003863,4]
[314422233,1708331435063,-500.0,0.0003863,4]
[314422234,1708331435073,-500.0,0.0003863,4]
[314422235,1708331435083,-500.0,0.0003863,4]
[314422236,1708331435093,-500.0,0.0003863,4]
[314422237,1708331435103,-500.0,0.0003863,4]
[314422238,1708331435113,-500.0,0.0003863,4]
[314422239,1708331435122,-500.0,0.0003863,4]
[314422240,1708331435132,-500.0,0.0003863,4]
[314422241,1708331435142,-500.0,0.0003863,4]
[314422242,1708331435152,-500.0,0.0003863,4]
[314422243,1708331435161,-500.0,0.0003863,4]
[314422244,1708331435170,-561.10343667,0.0003863,4]
[314422245,1708331435180,-500.0,0.0003863,4]
[314422246,1708331435189,-169.46,0.0003863,4]
[314422247,1708331435199,-500.0,0.0003863,4]
[314422248,1708331435210,-500.0,0.0003863,4]
[314422249,1708331435220,-500.0,0.0003863,4]
[314422250,1708331435230,-500.0,0.0003863,4]
[314422251,1708331435239,-500.0,0.0003863,4]
[314422252,1708331435248,-500.0,0.0003863,4]
[314422253,1708331435258,-500.0,0.0003863,4]
[314422254,1708331435267,-1141.94,0.0003863,4]
[314422255,1708331435276,-1141.94,0.0003863,4]
[314422256,1708331435285,-500.0,0.0003863,4]
[314422257,1708331435294,-631.74,0.0003863,4]
[314422258,1708331435303,-500.0,0.0003863,4]
[314422259,1708331435312,-500.0,0.0003863,4]
[314422260,1708331435322,-500.0,0.0003863,4]
[314422261,1708331435331,-500.0,0.0003863,4]
[314422262,1708331435341,-568.74130527,0.0003863,4]
[314422263,1708331435350,-2399.85,0.0003863,4]
[314422264,1708331435359,-2399.85,0.0003863,4]
[314422265,1708331435368,-500.0,0.0003863,4]
[314422266,1708331435377,-500.0,0.0003863,4]
[314422267,1708331435387,-192.5562329,0.0003863,4]
[314422268,1708331435396,-500.0,0.0003863,4]
[314422269,1708331435405,-500.0,0.0003863,4]
[314422270,1708331435414,-804.69,0.0003863,4]
[314422271,1708331435424,-804.69,0.0003863,4]
[314422272,1708331435434,-542.05532242,0.0003863,4]
[314422273,1708331435444,-1142.03,0.0003863,4]
[314422274,1708331435453,-1142.03,0.0003863,4]
[314422275,1708331435464,-500.0,0.0003863,4]
[314422276,1708331435473,-458.72627597,0.0003863,4]
[314422277,1708331435482,-500.0,0.0003863,4]
[314422278,1708331435492,-500.0,0.0003863,4]
[314422279,1708331435501,-500.0,0.0003863,4]
[314422280,1708331435510,-500.0,0.0003863,4]
[314422281,1708331435520,-500.0,0.0003863,4]
[314422282,1708331435529,-500.0,0.0003863,4]
[314422283,1708331435538,-500.0,0.0003863,2]
[314422284,1708331435548,-500.0,0.0003863,4]
[314422285,1708331435558,-614.04541233,0.0003863,4]
[314422286,1708331435567,-500.0,0.0003863,4]
[314422287,1708331435577,-500.0,0.0003863,4]
[314422288,1708331435586,-611.52238108,0.0003863,4]
[314422289,1708331435596,-500.0,0.0003863,4]
[314422290,1708331435609,-500.0,0.0003863,4]
[314422291,1708331435618,-208.10066467,0.0003863,4]
[314422292,1708331435627,-500.0,0.0003863,4]
[314422293,1708331435637,-627.88992733,0.0003863,4]
[314422294,1708331435647,-500.0,0.0003863,4]
[314422295,1708331435656,-500.0,0.0003863,4]
[314422296,1708331435666,-500.0,0.0003863,4]
[314422297,1708331435675,-533.77659021,0.0003863,4]
[314422298,1708331435684,-529.21277704,0.0003863,4]
[314422299,1708331435695,-500.0,0.0003863,4]
[314422300,1708331435705,-500.0,0.0003863,4]
[314422301,1708331435715,-500.0,0.0003863,4]
[314422302,1708331435725,-500.0,0.0003863,4]
[314422303,1708331435734,-511.26910638,0.0003863,4]
[314422304,1708331435743,-500.0,0.0003863,4]
[314422305,1708331435752,-500.0,0.0003863,4]
[314422306,1708331435762,-500.0,0.0003863,4]
[314422307,1708331435771,-500.0,0.0003863,4]
[314422308,1708331435780,-500.0,0.0003863,4]
[314422309,1708331435789,-500.0,0.0003863,4]
[314422310,1708331435798,-530.9900398,0.0003863,4]
[314422311,1708331435808,-500.0,0.0003863,4]
[314422312,1708331435817,-500.0,0.0003863,4]
[314422313,1708331435826,-500.0,0.0003863,4]
[314422314,1708331435835,-180.0,0.00038654,2]
[314422315,1708331435844,-1781.15483356,0.00038657,4]
[314422316,1708331435854,-155.54546353,0.00038657,2]
[314422317,1708331435863,-16010.74908377,0.0003866,12]
[314422318,1708331435873,-236.71518368,0.00038669,13]
[314422319,1708331435882,-196.52849666,0.0003867,12]
[314422320,1708331435892,-184.28394638,0.0003867,12]
[314422321,1708331435902,-154.32766975,0.00038673,2]
[314422322,1708331435911,-3093.25878991,0.00038676,9]
[314422323,1708331435921,-490.10473848,0.00038683,2]
[314422324,1708331435930,-5000.0,0.000387,3]
[314422325,1708331435940,-16362.30105161,0.000387,2]
[314422326,1708331435955,-1040.73140087,0.000387,2]
[314422327,1708331435967,-4462.3751389,0.000387,2]
[314422328,1708331435977,-161.79,0.00038715,2]
[314422329,1708331435988,-253.07,0.00038718,2]
[314422330,1708331435997,-554.85022029,0.00038721,2]
[314422331,1708331436007,-158.87,0.00038733,2]
[314422332,1708331436017,-14438.39487964,0.00038734,2]
[314422333,1708331436027,-871.25143982,0.00038734,2]
[314422334,1708331436036,-2958.44775568,0.00038741,2]
[314422335,1708331436047,-13114.23175487,0.0003875,4]
[314422336,1708331436059,-56354.62151365,0.0003875,4]
[314422337,1708331436071,-399.56118204,0.0003875,4]
[314422338,1708331436084,-1592.29409451,0.0003875,4]
[314422339,1708331436100,-10762.35817355,0.0003875,4]
[314422340,1708331436112,-7842.60947198,0.0003875,4]
[314422341,1708331436122,-500.0,0.00038759,4]
[314422342,1708331436131,-500.0,0.00038759,4]
[314422343,1708331436141,-456.74,0.00038759,4]
[314422344,1708331436151,-500.0,0.00038759,4]
[314422345,1708331436161,-500.0,0.00038759,4]
[314422346,1708331436170,-2399.85,0.00038759,4]
[314422347,1708331436179,-500.0,0.00038759,4]
[314422348,1708331436188,-804.69,0.00038759,4]
[314422349,1708331436198,-500.0,0.00038759,4]
[314422350,1708331436208,-500.0,0.0003876,4]
[314422351,1708331436217,-500.0,0.0003876,4]
[314422352,1708331436227,-500.0,0.0003876,4]
[314422353,1708331436237,-500.0,0.0003876,4]
[314422354,1708331436246,-2399.85,0.0003876,4]
[314422355,1708331436256,-500.0,0.0003876,4]
[314422356,1708331436266,-804.69,0.0003876,4]
[314422357,1708331436275,-182.94610606,0.0003876,4]
[314422358,1708331436473,-317.05389394,0.0003876,4]
[314422359,1708331436482,-102272.66678221,0.0003876,4]
[314422360,1708331436503,-521.97670531,0.0003876,4]
[314422367,1708331439816,-7137.02841072,0.00035305,2]
[314422368,1708331439983,-1484.10828739,0.00035305,2]
[314422369,1708331440096,-10545.96330189,0.00035305,2]
[314422370,1708331440105,-5159.12768709,0.00038388,12]
[314422371,1708331440114,-217.638,0.00038443,2]
[314422372,1708331440123,-201.563,0.00038443,2]
[314422373,1708331440133,-1260.642,0.00038443,2]
[314422374,1708331440142,-500.0,0.0003863,4]
[314422375,1708331440151,-500.0,0.0003863,4]
[314422376,1708331440160,-501.58455004,0.0003863,4]
[314422377,1708331440169,-519.95956206,0.0003863,4]
[314422378,1708331440178,-145273.10099304,0.0003876,3]
[314422379,1708331440188,-185.54979924,0.0003876,3]
[314422380,1708331440198,-167402.38508448,0.0003876,4]
[314422381,1708331440207,-496.34790707,0.0003876,2]
[314422382,1708331440217,-500.0,0.00038769,4]
[314422383,1708331440226,-500.0,0.00038769,4]
[314422384,1708331440235,-500.0,0.00038769,4]
[314422385,1708331440245,-500.0,0.00038769,4]
[314422386,1708331440255,-500.0,0.00038769,4]
[314422387,1708331440265,-500.0,0.00038769,4]
[314422388,1708331440274,-500.0,0.00038769,4]
[314422389,1708331440283,-500.0,0.00038769,4]
[314422390,1708331440292,-2399.85,0.00038769,4]
[314422391,1708331440301,-2399.85,0.00038769,4]
[314422393,1708331440310,-500.0,0.00038769,4]
[314422394,1708331440319,-500.0,0.00038769,4]
[314422395,1708331440329,-804.69,0.00038769,4]
[314422396,1708331440338,-804.69,0.00038769,4]
[314422397,1708331440347,-500.0,0.00038769,4]
[314422398,1708331440356,-500.0,0.00038769,4]
[314422399,1708331440365,-469176.72,0.0003877,2]
[314422400,1708331440375,-289.628742,0.0003877,14]
[314422401,1708331440384,-151.0,0.0003877,14]
[314422402,1708331440393,-289.628742,0.0003877,14]
[314422403,1708331440402,-256.749914,0.0003877,14]
[314422404,1708331440411,-220.534074,0.0003877,14]
[314422405,1708331440420,-163.569567,0.0003877,14]
[314422406,1708331440430,-256.749914,0.0003877,14]
[314422407,1708331440439,-220.534074,0.0003877,14]
[314422408,1708331440448,-163.569567,0.0003877,14]
[314422409,1708331440470,-424.796395,0.0003877,14]
[314422410,1708331440480,-424.796395,0.0003877,14]
[314422411,1708331440490,-151.0,0.0003877,14]
[314422412,1708331440499,-151.0,0.0003877,14]
[314422413,1708331440509,-174.41,0.0003877,14]
[314422414,1708331440518,-6854.281877,0.0003877,14]
[314422415,1708331440527,-6854.281877,0.0003877,14]
[314422416,1708331440537,-8550.0,0.0003877,14]
[314422417,1708331440546,-8550.0,0.0003877,14]
[314422418,1708331440555,-1402.654032,0.0003877,14]
[314422419,1708331440565,-1402.654032,0.0003877,14]
[314422420,1708331440574,-151.0,0.0003877,14]
[314422421,1708331440582,-151.0,0.0003877,14]
[314422422,1708331440592,-262.481154,0.0003877,14]